Cogmind - Beta 16.1 @@@ ROGUE MODE // 2026.03.28 @ 00:40:49 Player: Arumatsu123 Result: Destroyed by D-53 Grenadier with Mini Grenade Launcher Performance ------------- Evolutions (0) 0 Regions Visited (2) 400 Robots Destroyed (5) 25 Value Destroyed (108) 108 Prototype IDs (0) 0 Alien Tech Used (0) 0 Bonus (0) 0 TOTAL SCORE: 533 Bonus ------- None Cogmind --------- Core Integrity 0/250 Matter 300/300 Energy 100/100 System Corruption 0% Temperature Cool (0) Movement Core (100) Ox1 Location -10/Mines Parts ------- > --- POWER (1) -------- (None) > --- PROPULSION (2) --- (None) > --- UTILITY (2) ------ Small Storage Unit > --- WEAPON (2) ------- (None) > --- INVENTORY (8) ---- Aluminum Leg Aluminum Leg Peak State ------------ > --- POWER ------------ Ion Engine > --- PROPULSION ------- Aluminum Leg Aluminum Leg > --- UTILITY ---------- Small Storage Unit > --- WEAPON ----------- Light Assault Rifle Rocket Launcher > --- INVENTORY -------- Aluminum Leg Aluminum Leg [Rating: 7] Favorites ----------- Power Light Ion Engine Engine Light Ion Engine Propulsion Aluminum Leg Leg Aluminum Leg Utility Small Storage Unit Storage Small Storage Unit Weapon Light Assault Rifle Ballistic Gun Light Assault Rifle Launcher Rocket Launcher Build | -11 -10 -10 ------- Run | Yrd Mat Min Slots Evolved . | . . . Power . | . . . Propulsion . | . . . Utility . | . . . Weapon . | . . . Parts Attached 10 | 6 2 2 Power 2 | 1 1 . Engine 2 | 1 1 . Core . | . . . Reactor . | . . . Propulsion 4 | 2 1 1 Treads . | . . . Leg 4 | 2 1 1 Wheel . | . . . Hover . | . . . Flight . | . . . Utility 1 | 1 . . Device . | . . . Storage 1 | 1 . . Processor . | . . . Hackware . | . . . Protection . | . . . Artifact . | . . . Weapon 3 | 2 . 1 Energy Gun . | . . . Energy Cannon . | . . . Ballistic Gun 2 | 2 . . Ballistic Cannon . | . . . Launcher 1 | . . 1 Special Weapon . | . . . Impact Weapon . | . . . Slashing Weapon . | . . . Piercing Weapon . | . . . Special Melee Weapon . | . . . Unidentified Prototypes . | . . . Parts Lost 7 | . 2 5 Power 2 | . 1 1 Propulsion 2 | . . 2 Utility . | . . . Weapon 3 | . 1 2 Highest Loss Streak 3 | . 2 3 To Critical Strikes . | . . . Average Backups 1 | . . 2 Power . | . . . Propulsion 1 | . . 2 Utility . | . . . Weapon . | . . . Tool/Special . | . . . Unused Backups . | . . . Power . | . . . Propulsion . | . . . Utility . | . . . Weapon . | . . . Tool/Special . | . . . Average Slot Usage (%) 73 | . 81 65 Engine 14 | . 14 14 Leg 28 | . 28 28 Storage 14 | . 14 14 Ballistic Gun 15 | . 24 6 Launcher 1 | . . 2 Peak Build Rating 7 | 6 6 7 Average Rating 5 | 5 5 4 On Entrance 3 | . 6 5 Avg Prop Armor Cover (%) . | . . . Naked Turns . | . . . Heaviest Build 14 | 11 11 14 Greatest Support 20 | 20 20 20 Greatest Overweight (x) 3 | . . 3 Average Overweight (x) . | . . . Largest Inventory Capacity 8 | 8 8 8 Average Capacity 7 | 7 8 8 Most Carried 4 | 4 3 3 Average Carried 1 | . . 2 Final Capacity 8 | 8 8 8 Final Carried 2 | . 2 2 Class Distribution -------------------- 100% | Mutant Dominant Class ---------------- Mutant | -10/Materials Mutant | -10/Mines Resources | -11 -10 -10 ----------- Run | Yrd Mat Min Matter Collected 486 | 227 119 140 Remotely . | . . . Salvage Created 247 | . 119 128 Parts 7 | . 6 1 Haulers Intercepted . | . . . Recyclers Shooed . | . . . Parts Field Recycled . | . . . Retrieved Matter . | . . . Parts Self-Destructed . | . . . Prevented . | . . . Parts Restored . | . . . Kills | -11 -10 -10 ------- Run | Yrd Mat Min Combat Hostiles Destroyed 11 | . 3 8 Guns 6 | . 3 3 AOE 5 | . . 5 Classes Destroyed 3 | . 1 2 Recycler 1 | . . 1 Grunt 4 | . 3 1 Assembled 8 | . . 8 Best Kill Streak 9 | . 1 9 Combat Bots Only 8 | . 1 8 Max Kills in Single Turn 1 | . 1 1 Gunslinging . | . . . Exploded 1 | . . 1 Melee . | . . . Uniques/NPCs Destroyed . | . . . Combat | -11 -10 -10 -------- Run | Yrd Mat Min Hostile Shots Fired 91 | . 68 23 Missed 31 | . 25 6 Hits 60 | . 43 17 Projectile 60 | . 43 17 AOE 4 | . . 4 Damage Taken 912 | . 468 444 Core 251 | . 97 154 Absorbed by Shields . | . . . Core Remaining (%) 100 | 100 . . Volleys Fired 49 | . 32 17 Largest 2 | . 2 1 Hottest 40 | . 40 33 Shots Fired 68 | . 51 17 Gun 59 | . 51 8 Cannon . | . . . Launcher 9 | . . 9 Special . | . . . Kinetic 59 | . 51 8 Thermal . | . . . Explosive 9 | . . 9 Electromagnetic . | . . . Robot Hit Streak 6 | . 6 3 Robot Miss Streak 3 | . 3 3 Penetration Max . | . . . Secondary Targets 1 | . 1 . Max Gunslinging Chain 1 | . 1 . Shots Hit Robots 41 | . 33 8 Core Hits 21 | . 8 13 Critical Kills . | . . . Critical Parts Destroyed . | . . . Critical Strikes . | . . . Melee Attacks . | . . . Impact . | . . . Slashing . | . . . Piercing . | . . . Sneak Attacks . | . . . Combat Hostiles . | . . . Follow-up Attacks . | . . . Damage Inflicted 948 | . 332 616 Guns 370 | . 332 38 Cannons . | . . . Explosions 578 | . . 578 Melee . | . . . Ramming . | . . . Kinetic 370 | . 332 38 Thermal . | . . . Explosive 578 | . . 578 Electromagnetic . | . . . Impact . | . . . Slashing . | . . . Piercing . | . . . Highest Corruption . | . . . Average Corruption . | . . . Corruption Purged . | . . . Corruption Blocked . | . . . Overload Shots . | . . . Overflow Damage 32 | . . 32 Projectiles . | . . . Explosions 32 | . . 32 Melee . | . . . Knockbacks . | . . . Impact . | . . . Kinetic . | . . . Secondary . | . . . Self-Inflicted Damage 62 | . . 62 Shots 2 | . . 2 Rammed . | . . . Targets Rammed . | . . . Kicked . | . . . Crushed . | . . . Highest Temperature 12 | . 12 . Average Temperature 8 | . 8 . Received Heat Transfer 267 | . 258 9 Siege Activations . | . . . Martial Activations . | . . . Shielding Activations . | . . . Robots Disrupted . | . . . Combat Hostiles . | . . . Robots Corrupted . | . . . Combat Hostiles . | . . . Parts Fried . | . . . Impact Corruptions . | . . . Robots Melted . | . . . Combat Hostiles . | . . . Parts Melted . | . . . Heat Transferred . | . . . Parts Sabotaged . | . . . Parts Stolen . | . . . Parts Stripped . | . . . Power Chain Reactions . | . . . Alert | -11 -10 -10 ------- Run | Yrd Mat Min Maximum Alert Level . | . . . Low Security (%) 100 | 100 100 100 Level 1 . | . . . Level 2 . | . . . Level 3 . | . . . Level 4 . | . . . Level 5 . | . . . High Security . | . . . Max Security . | . . . Peak Influence 38 | . 30 38 Initial . | . . . Average 6 | . 8 6 Influence Increases 139 | . 70 69 Destroy 0b10 Robot/C 60 | . 60 . Destroy 0b10 Robot/NC 5 | . . 5 Destroy Leader 10 | . 10 . Destroy Structure 34 | . . 34 Lose Combat Pursuer 30 | . . 30 Influence Decreases 139 | . 70 69 Time Decay 79 | . 50 29 Lost Part 60 | . 20 40 Squads Dispatched 2 | . 2 . Investigation . | . . . Extermination . | . . . Reinforcement 2 | . 2 . Assault . | . . . Garrison . | . . . Intercept . | . . . Searches Triggered . | . . . Construction Impeded . | . . . Haulers Reinforced . | . . . Active Scanning Responses . | . . . Cargo Convoy Interrupts . | . . . Stealth | -11 -10 -10 --------- Run | Yrd Mat Min Distress Signals 1 | . 1 . Communications Jammed . | . . . Distress Signals . | . . . Times Spotted 19 | . 5 14 Peak Tracking Total 3 | . 2 3 Tactical Retreats 1 | . . 1 Traps | -11 -10 -10 ------- Run | Yrd Mat Min Traps Triggered . | . . . Indirectly . | . . . Trap Hack Attempts . | . . . Triggered . | . . . Disarmed . | . . . Reprogrammed . | . . . Reused . | . . . Traps Extracted . | . . . Installed . | . . . Triggered . | . . . Machines | -11 -10 -10 ---------- Run | Yrd Mat Min Machines Disabled . | . . . Max in Single Turn . | . . . Machines Repaired . | . . . Machines Dismantled . | . . . Machines Sabotaged . | . . . Overloaded Fab Kills . | . . . Hacking | -11 -10 -10 --------- Run | Yrd Mat Min Machines Accessed . | . . . Terminals . | . . . Fabricators . | . . . Repair Stations . | . . . Recycling Units . | . . . Scanalyzers . | . . . Garrison Access . | . . . Total Hacks . | . . . Successful . | . . . Failed . | . . . Catastrophic . | . . . Database Lockouts . | . . . Manual . | . . . Terminals . | . . . Fabricators . | . . . Repair Stations . | . . . Recycling Units . | . . . Scanalyzers . | . . . Garrison Access . | . . . Terminal Hacks . | . . . Fabricator Hacks . | . . . Repair Station Hacks . | . . . Recycling Unit Hacks . | . . . Scanalyzer . | . . . Garrison Access Hacks . | . . . Unauthorized Hacks . | . . . Terminals . | . . . Fabricators . | . . . Repair Stations . | . . . Recycling Units . | . . . Scanalyzers . | . . . Garrison Access . | . . . Data Cores Recovered . | . . . Used . | . . . Hacking Detections . | . . . Full Trace Events . | . . . Feedback Events . | . . . Feedback Blocked . | . . . Robot Schematics Acquired . | . . . Robots Built . | . . . Authchips . | . . . Time . | . . . Total Robot Build Rating . | . . . Part Schematics Acquired . | . . . Parts Built . | . . . Authchips . | . . . Time . | . . . Total Part Build Rating . | . . . Part Studies Acquired . | . . . Parts Repaired . | . . . Time . | . . . Parts Recycled . | . . . Recycled Matter . | . . . Retrieved Matter . | . . . Retrieved Components . | . . . Parts Scanalyzed . | . . . Part Schematics Acquired . | . . . Parts Damaged . | . . . Bothacking | -11 -10 -10 ------------ Run | Yrd Mat Min Used RIF Installer . | . . . Robots Hacked . | . . . Non-combat . | . . . Combat . | . . . Robot Hacks Applied . | . . . Relay Couplers Released . | . . . Fabnet Peak Effective % . | . . . Robots Rewired . | . . . Allies Hacked . | . . . Hacks Repelled . | . . . Allies | -11 -10 -10 -------- Run | Yrd Mat Min Total Allies 3 | . . 3 Largest Group 3 | . . 3 Highest-Rated Group 40 | . . 40 Highest-Rated Ally 16 | . . 16 Total Orders . | . . . Ally Attacks 22 | . . 22 Total Damage 218 | . . 218 Kills 2 | . . 2 Allies Corrupted 1 | . . 1 Allies Melted . | . . . Intel | -11 -10 -10 ------- Run | Yrd Mat Min Active Infowar (turns) . | . . . Robot Analysis Total . | . . . Derelict Logs Recovered . | . . . Drone Launches . | . . . Drone Recoveries . | . . . Exploration | -11 -10 -10 ------------- Run | Yrd Mat Min Turns Passed 442 | 84 183 175 Spaces Moved 266 | 65 85 116 Core 10 | 9 . 1 Treads . | . . . Legs 256 | 56 85 115 Wheels . | . . . Hover . | . . . Flight . | . . . Fastest Speed 50 | 50 120 120 Average Speed 117 | 110 120 120 Slowest Speed 200 | 120 120 200 Overloaded Moves . | . . . Propulsion Burnouts . | . . . Robots Hopped . | . . . Potential Cave-ins . | . . . Cave-ins Triggered . | . . . Exploration Rate (%) 15 | 3 14 28 Regions Visited 2 Branch Regions 1 Pre-discovered Areas . | . . . Known Exits Taken . | . . . Unknown Exits Taken 2 | 1 1 . Scrap Searched . | . . . Spaces Dug . | . . . Terrain Destroyed 62 | . . 62 Melee . | . . . Projectile . | . . . AOE 62 | . . 62 Terrain Rammed . | . . . Walls Destroyed . | . . . Machines Disabled . | . . . Actions | -11 -10 -10 --------- Run | Yrd Mat Min Total 334 | 77 121 136 Wait . | . . . Move 264 | 64 84 116 Hop . | . . . Pick Up 10 | 6 3 1 Fast Attach . | . . . Attach 8 | 6 1 1 Detach . | . . . Swap 3 | 1 1 1 Drop . | . . . Fire 49 | . 32 17 Melee . | . . . Ram . | . . . Kick . | . . . Crush . | . . . Escape Stasis . | . . . Rewire . | . . . Trap . | . . . Miscellaneous . | . . . Route ------- -11/Scrapyard -10/Materials -10/Mines History --------- Turn | Location | Event 9 | -11/Scrapyard | Discovered new exit (range 15) 85 | -11/Scrapyard | Entered Materials 262 | -10/Materials | Discovered new exit (range 5) 268 | -10/Materials | Entered Mines 269 | -10/Mines | Assembled infested the area 274 | -10/Mines | Assisted by a Guerilla fighting off Assembled 276 | -10/Mines | Received a Rocket Launcher from a helpful Derelict 296 | -10/Mines | Assisted by bots powering up and referring to "LRC-V3" 312 | -10/Mines | Build established: Mutant 350 | -10/Mines | Lost 3 allies 355 | -10/Mines | Core integrity fell below 50% 391 | -10/Mines | Destroyed 8 combat bots 443 | -10/Mines | Destroyed by D-53 Grenadier with Mini Grenade Launcher Last Messages --------------- 00374_ K-01 Serf collects debris. 00376_ The unstable cave ceiling collapses. 00377_ K-01 Serf collects debris. 00379_ The unstable cave ceiling collapses. 00379_ K-01 Serf destroyed. 00382_ The unstable cave ceiling collapses. 00386_ U-05 Engineer builds a Wall. 00395_ U-05 Engineer lays Concrete. 00397_ Acquired 18 matter. 00397_ K-01 Serf collects debris. 00400_ U-05 Engineer builds a Wall. 00400_ Acquired 44 matter. 00401_ K-01 Serf collects debris. 00408_ T-07 Excavator suffers critical hit (Destroy). 00409_ Acquired 1 matter. 00409_ K-01 Serf collects debris. 00433_ as-07768 destroyed. 00434_ K-01 Serf collects debris. 00441_ Aluminum Leg destroyed. 00443_ Ion Engine destroyed. Map ----- +----------------------------------------------------+ | ?????????????????????????????????????????????????? | | ?????????????????????????????????????????????????? | | ?????????????????????????????????????????????????? | | ?????????????????????????????????????????????????? | | ?????????????????????????????????????????????????? | | ?????????????????????????????????????????????????? | | ?????????????????????????????????????????????????? | | ?????????????????????????????????????????????????? | | ?????????????????????????????????????????????????? | | ?????????????????????????????????????????????????? | | ?????????????????????????????????????????????????? | | ?????????????????????????????????????????????????? | | ?????????????????????????????????????????????????? | | ????????????????#????????#???????????????????????? | | ?????????????? ##?????# ???????????????????????? | | ?????????????? ???? ???????????????????????? | | ??????????????? ???? ???????????????????????? | | ???????????????? ??? #??????????????????????? | | ????????????????? ?? ##?????????????????????? | | ?????????????????? ?? ##??????##"???????????? | | ??????????????????? ? ##??? X ??????????? | | ???????????????????? ## ### ????????????? | | ????????????####?????# ??????????????? | | ???????????## ##????# ?????????????????? | | ??????????## ##??## #???????????????????? | | ????????### ##?# @ #????????????????????? | | ???????## #?# ##???????????????????? | | ???????# ### ###?????????????????? | | ???????# ## ##????????????????? | | ???????# ## k ####?????????????? | | ???????# ####### """ d ##????????????? | | ???????## ##?????# """ ###??????????? | | ????????###???????## ! d ????????? | | ?????###???????????# =%*u ????????? | | ????? #???????????## ##### #??????????? | | ?##### #????????????# #???? ????????????? | | ?# # #????????????# ##????? #????????????? | | ?# # #???????##### % #????????????????????? | | ## # #???????# #????????????????????? | | % ####????# #### ##????????????????????? | | * *%= ###### #??## ####?????????????????????? | | != ## #??## ##????????????????????????? | | ## ## #### #?????????????????????????? | | %# ### ### ## # #?????????????????????????? | | ##?####?# ##?????????????????????????? | | #???????# ##??????????????????????????? | | ##???????#### #???????????????????????????? | | #???????????# #???????????????????????????? | | ##???????????## #???????????????????????????? | | #??????????????## #??????????????????????????? | +----------------------------------------------------+ Best States ------------- Heat Dissipation 25 Energy Generation 10 Energy Capacity 250 Matter Stores 300 Matter Capacity 300 Sight Range 16 Terrain Scan Density 10 Evasion (%) 55 Item Schematics ----------------- None Robot Schematics ------------------ None Fabricated ------------ Nothing Repaired ---------- Nothing Studied --------- None Alien Tech Used ----------------- None Achievements -------------- Ghost 'Em Challenges ------------ None Game ------ Seed IonAntisysDoublenader Manual? 0 Play Time 00:12:01 Cumulative 5.9 hours Start 2026.03.28 @ 00:29:41 End 2026.03.28 @ 00:40:49 Sessions 1 Manual Loads 0 Difficulty Rogue Special Mode None Game No. 9 Rogue 9 Adventurer 0 Explorer 0 Win Type - Total 0 Types 0/0/0/0/0/0/0/0/0/0 Lore% 1 Gallery% 6 Achievement% 7 Wizard Run 0 Options --------- Layout 0 ASCII 0 Keyboard 0 Movement Mouse Keybinds 0 Fullscreen 1 Font 18/SmallcapsGlow Map View 38x25 Zoom Use 100% Tactical HUD 1 Map Filters NONE Filters NONE Steam 1 RUN: 90e789a6-0819-4568-97d5-9c92a18690e5